Workbook

Sheet Commencer
B1: À PROPOS DE CE MODÈLE
B2: Créez un plan financier de démarrage d’entreprise à l’aide de ce modèle.
B3: Obtenez une vue d’ensemble d’un plan financier dans la feuille de calcul Vue d’ensemble.
B4: Utilisez les feuilles de calcul Modèles de coûts de démarrage et Modèle de pertes et profits pour tenir compte des coûts de démarrage et des pertes et profits.
B5: Les exemples de feuilles de calcul Exemple de coûts de démarrage et Exemple de pertes et profits contiennent des exemples de données dans les tables.
B6: Remarque :
B7: Des instructions supplémentaires ont été fournies dans la colonne A dans toutes les feuilles de calcul. Ce texte a été intentionnellement masqué. Pour supprimer le texte, sélectionnez la colonne A et choisissez SUPPRIMER. Sélectionnez la colonne A et changez la couleur de la police pour afficher le texte.
B8: Appuyez sur MAJ, puis sur F10 au sein d’un tableau et sélectionnez les options TABLEAU et TEXTE DE REMPLACEMENT pour en savoir davantage sur les tableaux.

Sheet Vue d’ensemble
B1: PLAN FINANCIER DE DÉMARRAGE D’ENTREPRISE
B2: L’établissement d’un plan financier est le point de convergence de toute planification d’entreprise. Une fois que vous avez identifié votre produit, le marché cible et les clients cibles, ainsi que la tarification, vous êtes prêt à commencer à faire des prévisions des coûts, des ventes et des bénéfices. Ces éléments, ainsi que vos hypothèses, vous aideront à estimer vos prévisions de ventes. L’autre aspect de l’entreprise aura trait aux dépenses que vous prévoyez d’engager. Cela est important en permanence pour déterminer quand vous êtes rentable. Lorsque vous démarrez votre entreprise, il est également important de savoir quelles dépenses vous devrez financer avant de recevoir le produit des ventes aux clients ou le flux de trésorerie qu’elles génèrent.
B3: Coûts de démarrage prévisionnels : Le tableau de l’onglet suivant, Modèle de coûts de démarrage, fournit un modèle vide avec des instructions pour la prise en main. L’onglet suivant, Exemple de coûts de démarrage, présente un échantillon des postes de frais fixes et ponctuels dont vous pourriez avoir besoin pour ouvrir votre entreprise. De nombreuses entreprises opèrent à crédit et n’encaissent d’argent qu’à terme. Il est important d’estimer quand l’entreprise commencera à encaisser de l’argent en se basant sur une hypothèse concernant le nombre de mois de frais fixes en plus des frais ponctuels que vous allez devoir financer sur vos réserves ou un investissement initial.
B4: Modèle de résultat prévisionnels : Dans l’onglet, étiquette Modèle de pertes et profits, vous trouverez un modèle vide pour faire des prévisions de ventes et un modèle de résultat. L’onglet suivant, Exemple de pertes et profits, montre un exemple des projections d’une petite entreprise pour ses 12 premiers mois d’opérations. La partie supérieure du tableau de chaque modèle affiche les ventes prévisionnelles et les bénéfices bruts. C’est un bon endroit pour commencer à créer vos prévisions de ventes. La section suivante détaille les dépenses récurrentes que vous projetez pour les mêmes mois. Celles-ci doivent correspondre aux coûts estimés de démarrage que vous avez calculés dans la section précédente. Au bas de ce modèle, vous commencerez à voir quand vous deviendrez rentable et quels postes de frais ont le plus d’incidence sur votre rentabilité.
B5: Effectuez le suivi de vos projections pour estimer les recettes et le coût des biens vendus. Pour les entreprises qui n’ont pas encore commencé à opérer, vous devez comprendre comment les estimer pour votre produit ou service. Voici quelques recommandations d’estimation :
B6: Recettes : Commencez par déterminer à partir de votre marché cible (le groupe de clients potentiels, d’entreprises ou de consommateurs) le nombre de ces cibles au cours de la première année. Quel pourcentage d’entre eux prévoyez-vous d’atteindre ? Qu’est-ce qu’une transaction moyenne pour qu’ils achètent votre produit ou service ? Combien pouvez-vous faire le premier mois, le deuxième, etc. ? Vous pouvez commencer par un nombre au cours du premier mois et l’augmenter d’un pourcentage, par exemple 10 %. Par exemple, si vous vendez des services de nettoyage à des petites entreprises de votre ville et qu’il existe 500 entreprises qui, selon vous, ont besoin du service. Si le contrat moyen est de 250 €/mois, vous devez estimer le nombre d’entreprises avec lesquelles vous pouvez signer un contrat mensuel pour la première année.
B7: Coût des marchandises vendues : Cela doit être calculé pour les produits et certains services. Il s’agit du coût inclus de production du produit. Par exemple, si vous vendez des vêtements, le coût des marchandises vendues correspond au prix que vous avez payé pour acheter les vêtements auprès d’un fabricant. Si vous les créez vous-même, cela serait le coût des matériaux et de la main d’œuvre pour les créer. Pour les services, il s’agit du coût direct d’une heure de tâche facturable. Tout ce qui se trouve en dessous des bénéfices bruts sur les pertes et profits est une charge fixe ou un surcoût pour l’ensemble de l’entreprise, tels que les loyers, les télécommunications ou même le marketing.

Sheet Modèle de coûts de démarrage
B1: COÛTS DE DÉMARRAGE
B2: Votre café | C2: =TODAY() -> 2022-01-20
B4: POSTES DE COÛT | C4: MOIS | D4: COÛT/MOIS | E4: COÛT PONCTUEL | F4: COÛT TOTAL
B5: Publicité/marketing | F5: =(C5*D5)+IF(E5>0,E5,0) -> 0 $
B6: Salaires des employés | F6: =(C6*D6)+IF(E6>0,E6,0) -> 0 $
B7: Impôts sur les salaires et avantages des employés | F7: 0 $
B8: Baux/locations/charges | F8: 0 $
B9: Affranchissement/expédition | F9: 0 $
B10: BUDGET ESTIMÉ DE DÉMARRAGE | F10: =SUBTOTAL(109,Démarrage[COÛT TOTAL]) -> 0

Sheet Exemple de coûts de démarrage
B1: COÛTS DE DÉMARRAGE
B2: ='Modèle de coûts de démarrage'!B2 -> Votre café | C2: =TODAY() -> 2022-01-20
B4: POSTES DE COÛT | C4: MOIS | D4: COÛT/MOIS | E4: COÛT PONCTUEL | F4: COÛT TOTAL
B5: Publicité/marketing | C5: 3 | D5: 300 $ | E5: 2,000 $ | F5: =(C5*D5)+IF(E5>0,E5,0) -> 2,900 $
B6: Salaires des employés | C6: 4 | D6: 3,500 $ | E6: 2 $ | F6: =(C6*D6)+IF(E6>0,E6,0) -> 14,002 $
B7: Impôts sur les salaires et avantages des employés | C7: 4 | D7: 500 $ | E7: 2,000 $ | F7: 4,000 $
B8: Baux/locations/charges | C8: 4 | D8: 750 $ | E8: 3,000 $ | F8: 6,000 $
B9: Affranchissement/expédition | C9: 1 | D9: 25 $ | E9: 25 $ | F9: 50 $
B10: BUDGET ESTIMÉ DE DÉMARRAGE | F10: =SUM(F6:F9) -> 24,052 $

Sheet Modèle de pertes et profits
B1: COÛTS DE DÉMARRAGE
B2: ='Modèle de coûts de démarrage'!B2 -> Votre café | C2: =TODAY() -> 2022-01-20
B4: RECETTES | C4: JANV | D4: FÉVR | E4: MARS | F4: AVR | G4: MAI | H4: JUIN | I4: JUIL | J4: AOÛT | K4: SEPT | L4: OCT | M4: NOV | N4: DÉC | O4: Exercice à ce jour
B5: Ventes de produits estimées | C5: 0 $ | D5: 0 $ | E5: 0 $ | F5: 0 $ | G5: 0 $ | H5: 0 $ | I5: 0 $ | J5: 0 $ | K5: 0 $ | L5: 0 $ | M5: 0 $ | N5: 0 $ | O5: =SUM(C5:N5) -> 0 $
B6: Moins les retours et remises | C6: 0 $ | D6: 0 $ | E6: 0 $ | F6: 0 $ | G6: 0 $ | H6: 0 $ | I6: 0 $ | J6: 0 $ | K6: 0 $ | L6: 0 $ | M6: 0 $ | N6: 0 $ | O6: =SUM(C6:N6) -> 0 $
B7: Recettes générées par les services | C7: 0 $ | D7: 0 $ | E7: 0 $ | F7: 0 $ | G7: 0 $ | H7: 0 $ | I7: 0 $ | J7: 0 $ | K7: 0 $ | L7: 0 $ | M7: 0 $ | N7: 0 $ | O7: 0 $
B8: Autres recettes | C8: 0 $ | D8: 0 $ | E8: 0 $ | F8: 0 $ | G8: 0 $ | H8: 0 $ | I8: 0 $ | J8: 0 $ | K8: 0 $ | L8: 0 $ | M8: 0 $ | N8: 0 $ | O8: 0 $
B9: Ventes nettes | C9: =SUBTOTAL(109,ExempleRecette[JANV]) -> 0 $ | D9: =SUBTOTAL(109,ExempleRecette[FÉVR]) -> 0 $ | E9: =SUBTOTAL(109,ExempleRecette[MARS]) -> 0 $ | F9: =SUBTOTAL(109,ExempleRecette[AVR]) -> 0 $ | G9: =SUBTOTAL(109,ExempleRecette[MAI]) -> 0 $ | H9: =SUBTOTAL(109,ExempleRecette[JUIN]) -> 0 $ | I9: =SUBTOTAL(109,ExempleRecette[JUIL]) -> 0 $ | J9: =SUBTOTAL(109,ExempleRecette[AOÛT]) -> 0 $ | K9: =SUBTOTAL(109,ExempleRecette[SEPT]) -> 0 $ | L9: =SUBTOTAL(109,ExempleRecette[OCT]) -> 0 $ | M9: =SUBTOTAL(109,ExempleRecette[NOV]) -> 0 $ | N9: =SUBTOTAL(109,ExempleRecette[DÉC]) -> 0 $ | O9: =SUM(ExempleRecette[[#Totals],[JANV]:[DÉC]]) -> 0 $
B10: Coût des produits vendus | C10: =C5*0.4 -> 0 $ | D10: 0 $ | E10: 0 $ | F10: 0 $ | G10: 0 $ | H10: 0 $ | I10: 0 $ | J10: 0 $ | K10: 0 $ | L10: 0 $ | M10: 0 $ | N10: 0 $ | O10: 0 $
B11: Marge brute | C11: =IFERROR(ExempleRecette[[#Totals],[JANV]]-C10,"") -> 0 $ | D11: =IFERROR(ExempleRecette[[#Totals],[FÉVR]]-D10,"") -> 0 $ | E11: =IFERROR(ExempleRecette[[#Totals],[MARS]]-E10,"") -> 0 $ | F11: =IFERROR(ExempleRecette[[#Totals],[AVR]]-F10,"") -> 0 $ | G11: =IFERROR(ExempleRecette[[#Totals],[MAI]]-G10,"") -> 0 $ | H11: =IFERROR(ExempleRecette[[#Totals],[JUIN]]-H10,"") -> 0 $ | I11: =IFERROR(ExempleRecette[[#Totals],[JUIL]]-I10,"") -> 0 $ | J11: =IFERROR(ExempleRecette[[#Totals],[AOÛT]]-J10,"") -> 0 $ | K11: =IFERROR(ExempleRecette[[#Totals],[SEPT]]-K10,"") -> 0 $ | L11: =IFERROR(ExempleRecette[[#Totals],[OCT]]-L10,"") -> 0 $ | M11: =IFERROR(ExempleRecette[[#Totals],[NOV]]-M10,"") -> 0 $ | N11: =IFERROR(ExempleRecette[[#Totals],[DÉC]]-N10,"") -> 0 $ | O11: 0 $
B13: DÉPENSES | C13: JANV | D13: FÉVR | E13: MARS | F13: AVR | G13: MAI | H13: JUIN | I13: JUIL | J13: AOÛT | K13: SEPT | L13: OCT | M13: NOV | N13: DÉC | O13: Exercice à ce jour
B14: Traitements et salaires | C14: 0 $ | D14: 0 $ | E14: 0 $ | F14: 0 $ | G14: 0 $ | H14: 0 $ | I14: 0 $ | J14: 0 $ | K14: 0 $ | L14: 0 $ | M14: 0 $ | N14: 0 $ | O14: =SUM(C14:N14) -> 0 $
B15: Marketing/publicité | C15: 0 $ | D15: 0 $ | E15: 0 $ | F15: 0 $ | G15: 0 $ | H15: 0 $ | I15: 0 $ | J15: 0 $ | K15: 0 $ | L15: 0 $ | M15: 0 $ | N15: 0 $ | O15: =SUM(C15:N15) -> 0 $
B16: Commissions sur les ventes | C16: 0 $ | D16: 0 $ | E16: 0 $ | F16: 0 $ | G16: 0 $ | H16: 0 $ | I16: 0 $ | J16: 0 $ | K16: 0 $ | L16: 0 $ | M16: 0 $ | N16: 0 $ | O16: 0 $
B17: Location | C17: 0 $ | D17: 0 $ | E17: 0 $ | F17: 0 $ | G17: 0 $ | H17: 0 $ | I17: 0 $ | J17: 0 $ | K17: 0 $ | L17: 0 $ | M17: 0 $ | N17: 0 $ | O17: 0 $
B18: Divers 1 | C18: 0 $ | D18: 0 $ | E18: 0 $ | F18: 0 $ | G18: 0 $ | H18: 0 $ | I18: 0 $ | J18: 0 $ | K18: 0 $ | L18: 0 $ | M18: 0 $ | N18: 0 $ | O18: 0 $
B19: Total des dépenses | C19: =IF(SUM(C14:C18)=0,"",SUM(C14:C18)) ->  | O19: =SUM(SampleExpenses[[#Totals],[JANV]:[DÉC]]) -> 0 $
B20: Revenu avant impôt | C20: =IFERROR('Modèle de pertes et profits'!$C$11-SampleExpenses[[#Totals],[JANV]],"") ->  | D20: =IFERROR('Modèle de pertes et profits'!$C$11-SampleExpenses[[#Totals],[FÉVR]],"") ->  | E20: =IFERROR('Modèle de pertes et profits'!$C$11-SampleExpenses[[#Totals],[MARS]],"") ->  | F20: =IFERROR('Modèle de pertes et profits'!$C$11-SampleExpenses[[#Totals],[AVR]],"") ->  | G20: =IFERROR('Modèle de pertes et profits'!$C$11-SampleExpenses[[#Totals],[MAI]],"") ->  | H20: =IFERROR('Modèle de pertes et profits'!$C$11-SampleExpenses[[#Totals],[JUIN]],"") ->  | I20: =IFERROR('Modèle de pertes et profits'!$C$11-SampleExpenses[[#Totals],[JUIL]],"") ->  | J20: =IFERROR('Modèle de pertes et profits'!$C$11-SampleExpenses[[#Totals],[AOÛT]],"") ->  | K20: =IFERROR('Modèle de pertes et profits'!$C$11-SampleExpenses[[#Totals],[SEPT]],"") ->  | L20: =IFERROR('Modèle de pertes et profits'!$C$11-SampleExpenses[[#Totals],[OCT]],"") ->  | M20: =IFERROR('Modèle de pertes et profits'!$C$11-#REF!,"") ->  | N20: =IFERROR('Modèle de pertes et profits'!$C$11-SampleExpenses[[#Totals],[DÉC]],"") ->  | O20: 0 $
B21: Charge d’impôts | C21: =IFERROR(C20*0.15," ") ->  | D21: =IFERROR(D20*0.15," ") ->  | E21: =IFERROR(E20*0.15," ") ->  | O21: =SUM('Modèle de pertes et profits'!$C$21:$N$21) -> 0 $
B23: REVENU NET | C23: =IFERROR(C20-'Modèle de pertes et profits'!$C$21,"") ->  | D23: =IFERROR(D20-'Modèle de pertes et profits'!$D$21,"") ->  | E23: =IFERROR(E20-'Modèle de pertes et profits'!$E$21,"") ->  | F23: =IFERROR(F20-'Modèle de pertes et profits'!$F$21,"") ->  | G23: =IFERROR(G20-'Modèle de pertes et profits'!$G$21,"") ->  | H23: =IFERROR(H20-'Modèle de pertes et profits'!$H$21,"") ->  | I23: =IFERROR(I20-'Modèle de pertes et profits'!$I$21,"") ->  | J23: =IFERROR(J20-'Modèle de pertes et profits'!$J$21,"") ->  | K23: =IFERROR(K20-'Modèle de pertes et profits'!$K$21,"") ->  | L23: =IFERROR(L20-'Modèle de pertes et profits'!$L$21,"") ->  | M23: =IFERROR(M20-'Modèle de pertes et profits'!$M$21,"") ->  | N23: =IFERROR(N20-'Modèle de pertes et profits'!$N$21,"") ->  | O23: =IFERROR(O20-'Modèle de pertes et profits'!$O$21,"") -> 0 $

Sheet Exemple de pertes et profits
B1: COÛTS DE DÉMARRAGE
B2: ='Modèle de coûts de démarrage'!B2 -> Votre café | C2: =TODAY() -> 2022-01-20
B4: RECETTES | C4: JANV | D4: FÉVR | E4: MARS | F4: AVR | G4: MAI | H4: JUIN | I4: JUIL | J4: AOÛT | K4: SEPT | L4: OCT | M4: NOV | N4: DÉC | O4: Exercice à ce jour
B5: Ventes de produits estimées | C5: 5,000 $ | D5: 13,000 $ | E5: 16,000 $ | F5: 7,000 $ | G5: 14,500 $ | H5: 16,400 $ | I5: 22,500 $ | J5: 23,125 $ | K5: 24,549 $ | L5: 22,000 $ | M5: 25,000 $ | N5: 27,349 $ | O5: =SUM(C5:N5) -> 216,423 $
B6: Moins les retours et remises | C6: 0 $ | D6: -350 $ | E6: 0 $ | F6: -206 $ | G6: -234 $ | H6: 0 $ | I6: 0 $ | J6: -280 $ | K6: -1,200 $ | L6: -1,600 $ | M6: 0 $ | N6: -2,400 $ | O6: =SUM(C6:N6) -> -6,270 $
B7: Recettes générées par les services | C7: 0 $ | D7: 0 $ | E7: 0 $ | F7: 0 $ | G7: 0 $ | H7: 250 $ | I7: 350 $ | J7: 100 $ | K7: 0 $ | L7: 0 $ | M7: 1,245 $ | N7: 1,360 $ | O7: 3,305 $
B8: Autres recettes | C8: 0 $ | D8: 0 $ | E8: 0 $ | F8: 0 $ | G8: 0 $ | H8: 0 $ | I8: 0 $ | J8: 1,500 $ | K8: 0 $ | L8: 0 $ | M8: 0 $ | N8: 0 $ | O8: 1,500 $
B9: Ventes nettes | C9: =SUBTOTAL(109,RecetteRéelle[JANV]) -> 5,000 $ | D9: =SUBTOTAL(109,RecetteRéelle[FÉVR]) -> 12,650 $ | E9: =SUBTOTAL(109,RecetteRéelle[MARS]) -> 16,000 $ | F9: =SUBTOTAL(109,RecetteRéelle[AVR]) -> 6,794 $ | G9: =SUBTOTAL(109,RecetteRéelle[MAI]) -> 14,266 $ | H9: =SUBTOTAL(109,RecetteRéelle[JUIN]) -> 16,650 $ | I9: =SUBTOTAL(109,RecetteRéelle[JUIL]) -> 22,850 $ | J9: =SUBTOTAL(109,RecetteRéelle[AOÛT]) -> 24,445 $ | K9: =SUBTOTAL(109,RecetteRéelle[SEPT]) -> 23,349 $ | L9: =SUBTOTAL(109,RecetteRéelle[OCT]) -> 20,400 $ | M9: =SUBTOTAL(109,RecetteRéelle[NOV]) -> 26,245 $ | N9: =SUBTOTAL(109,RecetteRéelle[DÉC]) -> 26,309 $ | O9: =SUM(RecetteRéelle[[#Totals],[JANV]:[DÉC]]) -> 214,958 $
B10: Coût des produits vendus | C10: =C5*0.4 -> 2,000 $ | D10: 5,200 $ | E10: 6,400 $ | F10: 2,800 $ | G10: 5,800 $ | H10: 6,560 $ | I10: 9,000 $ | J10: 9,250 $ | K10: 9,820 $ | L10: 8,800 $ | M10: 10,000 $ | N10: 10,940 $ | O10: 86,569 $
B11: Marge brute | C11: =IFERROR(RecetteRéelle[[#Totals],[JANV]]-C10,"") -> 3,000 $ | D11: =IFERROR(RecetteRéelle[[#Totals],[FÉVR]]-D10,"") -> 7,450 $ | E11: =IFERROR(RecetteRéelle[[#Totals],[MARS]]-E10,"") -> 9,600 $ | F11: =IFERROR(RecetteRéelle[[#Totals],[AVR]]-F10,"") -> 3,994 $ | G11: =IFERROR(RecetteRéelle[[#Totals],[MAI]]-G10,"") -> 8,466 $ | H11: =IFERROR(RecetteRéelle[[#Totals],[JUIN]]-H10,"") -> 10,090 $ | I11: =IFERROR(RecetteRéelle[[#Totals],[JUIL]]-I10,"") -> 13,850 $ | J11: =IFERROR(RecetteRéelle[[#Totals],[AOÛT]]-J10,"") -> 15,195 $ | K11: =IFERROR(RecetteRéelle[[#Totals],[SEPT]]-K10,"") -> 13,529 $ | L11: =IFERROR(RecetteRéelle[[#Totals],[OCT]]-L10,"") -> 11,600 $ | M11: =IFERROR(RecetteRéelle[[#Totals],[NOV]]-M10,"") -> 16,245 $ | N11: =IFERROR(RecetteRéelle[[#Totals],[DÉC]]-N10,"") -> 15,369 $ | O11: 128,389 $
B13: DÉPENSES | C13: JANV | D13: FÉVR | E13: MARS | F13: AVR | G13: MAI | H13: JUIN | I13: JUIL | J13: AOÛT | K13: SEPT | L13: OCT | M13: NOV | N13: DÉC | O13: Exercice à ce jour
B14: Traitements et salaires | C14: 2,500 $ | D14: 2,500 $ | E14: 3,500 $ | F14: 5,000 $ | G14: 5,000 $ | H14: 5,000 $ | I14: 8,000 $ | J14: 9,000 $ | K14: 9,000 $ | L14: 9,000 $ | M14: 9,000 $ | N14: 9,000 $ | O14: =SUM(C14:N14) -> 76,500 $
B15: Marketing/publicité | C15: 400 $ | D15: 450 $ | E15: 450 $ | F15: 450 $ | G15: 900 $ | H15: 900 $ | I15: 900 $ | J15: 900 $ | K15: 900 $ | L15: 900 $ | M15: 1,200 $ | N15: 1,200 $ | O15: =SUM(C15:N15) -> 9,550 $
B16: Commissions sur les ventes | C16: 250 $ | D16: 650 $ | E16: 800 $ | F16: 350 $ | G16: 725 $ | H16: 820 $ | I16: 1,125 $ | J16: 1,156 $ | K16: 1,227 $ | L16: 1,100 $ | M16: 1,250 $ | N16: 1,367 $ | O16: 10,821 $
B17: Location | C17: 1,250 $ | D17: 1,250 $ | E17: 1,250 $ | F17: 1,250 $ | G17: 1,250 $ | H17: 1,250 $ | I17: 1,250 $ | J17: 1,250 $ | K17: 1,250 $ | L17: 1,250 $ | M17: 1,250 $ | N17: 1,250 $ | O17: 15,000 $
B18: Total des dépenses | C18: =IF(SUM(C14:C17)=0,"",SUM(C14:C17)) -> 4,400 $ | D18: 4,850 $ | E18: 6,000 $ | F18: 7,050 $ | G18: 7,875 $ | H18: 7,970 $ | I18: 11,275 $ | J18: 12,306 $ | K18: 12,377 $ | L18: 12,250 $ | M18: 12,700 $ | N18: 12,817 $ | O18: =SUM(DépensesRéelles[[#Totals],[JANV]:[DÉC]]) -> 111,871 $
B19: Revenu avant impôt | C19: =IFERROR('Exemple de pertes et profits'!$C$11-DépensesRéelles[[#Totals],[JANV]],"") -> -1,400 $ | D19: =IFERROR('Exemple de pertes et profits'!$D$11-DépensesRéelles[[#Totals],[FÉVR]],"") -> 2,600 $ | E19: =IFERROR('Exemple de pertes et profits'!$E$11-DépensesRéelles[[#Totals],[MARS]],"") -> 3,600 $ | F19: =IFERROR('Exemple de pertes et profits'!$F$11-DépensesRéelles[[#Totals],[AVR]],"") -> -3,056 $ | G19: =IFERROR('Exemple de pertes et profits'!$G$11-DépensesRéelles[[#Totals],[MAI]],"") -> 591 $ | H19: =IFERROR('Exemple de pertes et profits'!$H$11-DépensesRéelles[[#Totals],[JUIN]],"") -> 2,120 $ | I19: =IFERROR('Exemple de pertes et profits'!$I$11-DépensesRéelles[[#Totals],[JUIL]],"") -> 2,575 $ | J19: =IFERROR('Exemple de pertes et profits'!$J$11-DépensesRéelles[[#Totals],[AOÛT]],"") -> 2,889 $ | K19: =IFERROR('Exemple de pertes et profits'!$K$11-DépensesRéelles[[#Totals],[SEPT]],"") -> 1,152 $ | L19: =IFERROR('Exemple de pertes et profits'!$L$11-DépensesRéelles[[#Totals],[OCT]],"") -> -650 $ | M19: =IFERROR('Exemple de pertes et profits'!$M$11-DépensesRéelles[[#Totals],[NOV]],"") -> 3,545 $ | N19: =IFERROR('Exemple de pertes et profits'!$N$11-DépensesRéelles[[#Totals],[DÉC]],"") -> 2,552 $ | O19: =SUM(C19:N19) -> 16,518 $
B20: Charge d’impôts | C20: =C19*0.15 -> -210 $ | D20: 390 $ | E20: =E19*0.15 -> 540 $ | F20: =F19*0.15 -> -458 $ | G20: =G19*0.15 -> 89 $ | H20: =H19*0.15 -> 318 $ | I20: =I19*0.15 -> 386 $ | J20: =J19*0.15 -> 433 $ | K20: =K19*0.15 -> 173 $ | L20: =L19*0.15 -> -98 $ | M20: =M19*0.15 -> 532 $ | N20: =N19*0.15 -> 383 $ | O20: =SUM('Exemple de pertes et profits'!$C$20:$N$20) -> 2,478 $
B22: REVENU NET | C22: =IFERROR(C19-'Exemple de pertes et profits'!$C$20," ") -> -1,190 $ | D22: =IFERROR(D19-'Exemple de pertes et profits'!$D$20," ") -> 2,210 $ | E22: =IFERROR(E19-'Exemple de pertes et profits'!$E$20,"") -> 3,060 $ | F22: =IFERROR(F19-'Exemple de pertes et profits'!$F$20,"") -> -2,598 $ | G22: =IFERROR(G19-'Exemple de pertes et profits'!$G$20,"") -> 502 $ | H22: =IFERROR(H19-'Exemple de pertes et profits'!$H$20,"") -> 1,802 $ | I22: =IFERROR(I19-'Exemple de pertes et profits'!$I$20,"") -> 2,189 $ | J22: =IFERROR(J19-'Exemple de pertes et profits'!$J$20,"") -> 2,455 $ | K22: =IFERROR(K19-'Exemple de pertes et profits'!$K$20,"") -> 979 $ | L22: =IFERROR(L19-'Exemple de pertes et profits'!$L$20,"") -> -553 $ | M22: =IFERROR(M19-'Exemple de pertes et profits'!$M$20,"") -> 3,013 $ | N22: =IFERROR(N19-'Exemple de pertes et profits'!$N$20,"") -> 2,169 $ | O22: =IFERROR(O19-'Exemple de pertes et profits'!$O$20,"") -> 14,040 $
